fUST/lending_fUST_20250726
["ID","MTS","AMOUNT","RATE_DAILY","PERIOD"]
[374999798,1753497040072,-151.0,0.00019178,2]
[374999800,1753497040083,-151.0,0.00019178,2]
[374999802,1753497040092,-151.0,0.00019178,2]
[374999804,1753497040101,-151.0,0.00019178,2]
[374999806,1753497040110,-460.0,0.00019178,2]
[374999808,1753497040120,-460.0,0.00019178,2]
[374999810,1753497040129,-460.0,0.00019178,2]
[374999812,1753497040138,-460.0,0.00019178,2]
[374999814,1753497040147,-151.0,0.00019178,2]
[374999816,1753497040156,-151.0,0.00019178,2]
[374999818,1753497040166,-151.0,0.00019178,2]
[374999820,1753497040175,-151.0,0.00019178,2]
[374999822,1753497040184,-151.0,0.00019178,2]
[374999824,1753497040194,-151.0,0.00019178,2]
[374999826,1753497040203,-151.0,0.00019178,2]
[374999828,1753497040212,-151.0,0.00019178,2]
[374999830,1753497040222,-151.0,0.00019178,2]
[374999832,1753497040231,-151.0,0.00019178,2]
[374999834,1753497040241,-405.29375336,0.00019178,2]
[374999836,1753497040250,-152.283671,0.00019178,2]
[374999838,1753497040259,-460.0,0.00019178,2]
[374999840,1753497040270,-151.0,0.00019178,2]
[374999842,1753497040279,-463.43693851,0.00019178,2]
[374999844,1753497040289,-151.0,0.00019178,2]
[374999846,1753497040298,-172.615287,0.00019178,2]
[374999848,1753497040307,-865.75,0.00019178,2]
[374999850,1753497040316,-937.47,0.00019178,2]
[374999852,1753497040325,-460.0,0.00019178,2]
[374999854,1753497040335,-469.85903229,0.00019178,2]
[374999856,1753497040344,-463.54245289,0.00019178,2]
[374999858,1753497040355,-500.0,0.00019178,2]
[374999860,1753497040365,-500.0,0.00019178,2]
[374999862,1753497040374,-792.65,0.00019178,2]
[374999863,1753497040383,-151.0,0.00019178,2]
[374999865,1753497040392,-151.0,0.00019178,2]
[374999867,1753497040401,-151.0,0.00019178,2]
[374999869,1753497040411,-466.90676101,0.00019178,2]
[374999871,1753497040421,-151.0,0.00019178,2]
[374999873,1753497040430,-151.0,0.00019178,2]
[374999875,1753497040439,-151.0,0.00019178,2]
[374999878,1753497040449,-151.0,0.00019178,2]
[374999880,1753497040459,-151.0,0.00019178,2]
[374999882,1753497040469,-151.0,0.00019178,2]
[374999884,1753497040479,-460.0,0.00019178,2]
[374999885,1753497040488,-151.0,0.00019178,2]
[374999887,1753497040498,-151.0,0.00019178,2]
[374999889,1753497040507,-151.0,0.00019178,2]
[374999891,1753497040519,-151.0,0.00019178,2]
[374999893,1753497040528,-460.0,0.00019178,2]
[374999895,1753497040537,-153.812467,0.00019178,2]
[374999897,1753497040546,-460.0,0.00019178,2]
[374999899,1753497040555,-468.96845353,0.00019178,2]
[374999901,1753497040564,-460.0,0.00019178,2]
[374999903,1753497040574,-468.07065187,0.00019178,2]
[374999905,1753497040583,-2403.99,0.00019178,2]
[374999907,1753497040593,-460.0,0.00019178,2]
[374999909,1753497040603,-348.9097981,0.00019178,2]
[374999911,1753497040612,-460.0,0.00019178,2]
[374999913,1753497040622,-543.87,0.00019178,2]
[374999915,1753497040631,-463.99973504,0.00019178,2]
[374999917,1753497040641,-151.0,0.00019178,2]
[374999919,1753497040650,-151.0,0.00019178,2]
[374999921,1753497040660,-152.337116,0.00019178,2]
[374999923,1753497040669,-460.0,0.00019178,2]
[374999925,1753497040679,-460.0,0.00019178,2]
[374999927,1753497040688,-151.484814,0.00019178,2]
[374999929,1753497040697,-706.61,0.00019178,2]
[374999931,1753497040706,-469.33580098,0.00019178,2]
[374999933,1753497040715,-460.0,0.00019178,2]
[374999935,1753497040724,-450.24562668,0.00019178,2]
[374999937,1753497040734,-460.0,0.00019178,2]
[374999939,1753497040743,-460.0,0.00019178,2]
[374999941,1753497040752,-674.94,0.00019178,2]
[374999943,1753497040763,-697.14,0.00019178,2]
[374999945,1753497040772,-460.0,0.00019178,2]
[374999947,1753497040781,-460.0,0.00019178,2]
[374999949,1753497040791,-460.0,0.00019178,2]
[374999951,1753497040800,-151.0,0.00019178,2]
[374999953,1753497040809,-151.0,0.00019178,2]
[374999954,1753497040819,-151.0,0.00019178,2]
[374999956,1753497040828,-151.0,0.00019178,2]
[374999958,1753497040837,-275.438568,0.00019178,2]
[374999960,1753497040847,-460.0,0.00019178,2]
[374999962,1753497040856,-460.0,0.00019178,2]
[374999964,1753497040866,-465.29567133,0.00019178,2]
[374999966,1753497040876,-466.02957948,0.00019178,2]
[374999968,1753497040885,-460.0,0.00019178,2]
[374999970,1753497040894,-460.0,0.00019178,2]
[374999972,1753497040903,-460.0,0.00019178,2]
[374999974,1753497040913,-460.0,0.00019178,2]
[374999976,1753497040922,-467.96208109,0.00019178,2]
[374999978,1753497040932,-460.0,0.00019178,2]
[374999980,1753497040942,-460.0,0.00019178,2]
[374999982,1753497040951,-471.31385611,0.00019178,2]
[374999984,1753497040960,-460.0,0.00019178,2]
[374999986,1753497040969,-460.0,0.00019178,2]
[374999988,1753497040980,-460.0,0.00019178,2]
[374999990,1753497040989,-460.0,0.00019178,2]
[374999992,1753497040998,-460.0,0.00019178,2]
[374999994,1753497041007,-548.18,0.00019178,2]
[374999996,1753497041018,-467.48,0.00019178,2]
[374999998,1753497041028,-460.0,0.00019178,2]
[375000000,1753497041038,-183.47309064,0.00019178,2]
[375000002,1753497041048,-500.0,0.00019178,2]
[375000004,1753497041059,-151.0,0.00019246,2]
[375000006,1753497041069,-151.0,0.00019246,2]
[375000008,1753497041079,-151.0,0.00019246,2]
[375000010,1753497041089,-151.0,0.00019246,2]
[375000011,1753497041098,-204.953089,0.00019246,2]
[375000012,1753497041108,-204.953089,0.00019246,2]
[375000013,1753497041117,-189.488842,0.00019246,2]
[375000014,1753497041126,-189.488842,0.00019246,2]
[375000015,1753497041136,-151.0,0.00019246,2]
[375000016,1753497041145,-151.0,0.00019246,2]
[375000017,1753497041154,-905.334094,0.00019246,2]
[375000018,1753497041164,-905.334094,0.00019246,2]
[375000019,1753497041173,-151.0,0.00019246,2]
[375000020,1753497041183,-151.0,0.00019246,2]
[375000021,1753497041192,-151.0,0.00019246,2]
[375000022,1753497041201,-151.0,0.00019246,2]
[375000023,1753497041210,-151.0,0.00019246,2]
[375000024,1753497041219,-151.0,0.00019246,2]
[375000025,1753497041229,-151.0,0.00019246,2]
[375000026,1753497041238,-151.0,0.00019246,2]
[375000027,1753497041247,-241.357054,0.00019246,2]
[375000028,1753497041257,-151.0,0.00019246,2]
[375000029,1753497041268,-151.0,0.00019307,2]
[375000030,1753497041278,-500.0,0.00019307,2]
[375000031,1753497041287,-13366.4189147,0.00019308,2]
[375000032,1753497041297,-151.0,0.00019308,2]
[375000033,1753497041309,-153.509012,0.00019308,2]
[375000034,1753497041319,-172.021145,0.00019308,2]
[375000035,1753497041328,-152.298703,0.00019308,2]
[375000036,1753497041337,-151.0,0.00019308,2]
[375000037,1753497041347,-151.0,0.00019308,2]
[375000038,1753497041359,-204.953089,0.00019308,2]
[375000039,1753497041368,-204.953089,0.00019308,2]
[375000040,1753497041378,-189.488842,0.00019308,2]
[375000041,1753497041387,-189.488842,0.00019308,2]
[375000042,1753497041396,-151.0,0.00019308,2]
[375000043,1753497041407,-151.0,0.00019308,2]
[375000044,1753497041416,-905.334094,0.00019308,2]
[375000045,1753497041425,-905.334094,0.00019308,2]
[375000046,1753497041437,-151.0,0.00019308,2]
[375000047,1753497041447,-151.0,0.00019308,2]
[375000048,1753497041456,-151.0,0.00019308,2]
[375000049,1753497041466,-151.0,0.00019308,2]
[375000050,1753497041475,-151.0,0.00019308,2]
[375000051,1753497041484,-151.0,0.00019308,2]
[375000052,1753497041494,-154.433471,0.00019308,2]
[375000053,1753497041504,-151.0,0.00019308,2]
[375000054,1753497041513,-151.0,0.00019308,2]
[375000055,1753497041523,-151.0,0.00019308,2]
[375000056,1753497041533,-151.0,0.00019308,2]
[375000058,1753497041542,-150.95152785,0.00019329,2]
[375000060,1753497041552,-2077.59078933,0.00019353,2]
[375000062,1753497041561,-151.0,0.00019353,2]
[375000064,1753497041570,-2077.59078933,0.00019377,2]
[375000066,1753497041580,-659.31,0.00019396,3]
[375000068,1753497041589,-151.0,0.000194,2]
[375000070,1753497041598,-151.0,0.000194,2]
[375000072,1753497041607,-151.0,0.000194,2]
[375000074,1753497041616,-151.0,0.000194,2]
[375000076,1753497041625,-2077.59078933,0.000194,2]
[375000078,1753497041634,-151.0,0.000194,2]
[375000080,1753497041643,-166.07889,0.000194,2]
[375000082,1753497041653,-6558.34887775,0.000194,2]
[375000084,1753497041662,-151.0,0.00019403,2]
[375000086,1753497041671,-151.0,0.00019403,2]
[375000088,1753497041681,-460.0,0.00019405,2]
[375000090,1753497041690,-274.803603,0.00019405,2]
[375000092,1753497041699,-630.44069757,0.00019405,2]
[375000094,1753497041709,-460.0,0.00019406,2]
[375000096,1753497041719,-151.0,0.00019406,2]
[375000098,1753497041728,-463.47027846,0.00019406,2]
[375000100,1753497041737,-151.0,0.00019406,2]
[375000102,1753497041747,-168.098523,0.00019406,2]
[375000104,1753497041756,-461.28144087,0.00019406,2]
[375000106,1753497041766,-464.72897734,0.00019406,2]
[375000108,1753497041775,-464.74114331,0.00019406,2]
[375000109,1753497041784,-460.0,0.00019406,2]
[375000111,1753497041793,-152.822213,0.00019406,2]
[375000113,1753497041803,-222.287113,0.00019406,2]
[375000115,1753497041812,-466.81932942,0.00019406,2]
[375000118,1753497041822,-222.287113,0.00019406,2]
[375000119,1753497041831,-460.0,0.00019406,2]
[375000121,1753497041841,-568.82132003,0.00019406,2]
[375000123,1753497041850,-471.49552733,0.00019406,2]
[375000125,1753497041860,-151.0,0.00019406,2]
[375000127,1753497041869,-151.0,0.00019406,2]
[375000129,1753497041879,-151.0,0.00019406,2]
[375000131,1753497041888,-153.020978,0.00019406,2]
[375000133,1753497041898,-470.03308371,0.00019406,2]
[375000135,1753497041907,-204.953089,0.00019406,2]
[375000137,1753497041917,-204.953089,0.00019406,2]
[375000139,1753497041926,-204.953089,0.00019406,2]
[375000141,1753497041936,-204.953089,0.00019406,2]
[375000143,1753497041946,-204.953089,0.00019406,2]
[375000145,1753497041955,-204.953089,0.00019406,2]
[375000147,1753497041964,-189.488842,0.00019406,2]
[375000149,1753497041974,-189.488842,0.00019406,2]
[375000151,1753497041983,-189.488842,0.00019406,2]
[375000153,1753497041993,-466.4754068,0.00019406,2]
[375000155,1753497042002,-189.488842,0.00019406,2]
[375000157,1753497042012,-189.488842,0.00019406,2]
[375000159,1753497042021,-189.488842,0.00019406,2]
[375000161,1753497042030,-460.0,0.00019406,2]
[375000163,1753497042040,-460.0,0.00019406,2]
[375000165,1753497042049,-460.0,0.00019406,2]
[375000167,1753497042059,-460.0,0.00019406,2]
[375000169,1753497042068,-151.0,0.00019406,2]
[375000171,1753497042077,-151.0,0.00019406,2]
[375000173,1753497042086,-151.0,0.00019406,2]
[375000175,1753497042095,-212.66719458,0.00019406,2]
[375000177,1753497042104,-473.75742275,0.00019406,2]
[375000179,1753497042114,-461.14283642,0.00019406,2]
[375000181,1753497042124,-460.0,0.00019406,2]
[375000183,1753497042133,-266.743077,0.00019406,2]
[375000185,1753497042142,-460.0,0.00019406,2]
[375000187,1753497042152,-905.334094,0.00019406,2]
[375000188,1753497042161,-905.334094,0.00019406,2]
[375000190,1753497042171,-905.334094,0.00019406,2]
[375000192,1753497042180,-905.334094,0.00019406,2]
[375000194,1753497042190,-905.334094,0.00019406,2]
[375000196,1753497042199,-905.334094,0.00019406,2]
[375000198,1753497042208,-151.0,0.00019406,2]
[375000200,1753497042219,-151.0,0.00019406,2]
[375000202,1753497042228,-151.0,0.00019406,2]
[375000204,1753497042239,-151.0,0.00019406,2]
[375000206,1753497042248,-151.0,0.00019406,2]
[375000208,1753497042257,-151.0,0.00019406,2]
[375000210,1753497042267,-240.339487,0.00019406,2]
[375000212,1753497042276,-463.70164252,0.00019406,2]
[375000214,1753497042285,-225.221056,0.00019406,2]
[375000216,1753497042296,-464.32817541,0.00019406,2]
[375000218,1753497042306,-465.52536968,0.00019406,2]
[375000220,1753497042316,-464.4535999,0.00019406,2]
[375000222,1753497042325,-151.0,0.00019406,2]
[375000224,1753497042335,-460.0,0.00019406,2]
[375000226,1753497042344,-460.0,0.00019406,2]
[375000228,1753497042354,-469.2433666,0.00019406,2]
[375000230,1753497042363,-464.10937476,0.00019406,2]
[375000232,1753497042372,-419.56686568,0.00019406,2]
[375000234,1753497042381,-151.0,0.00019406,2]
[375000236,1753497042391,-466.52325735,0.00019406,2]
[375000238,1753497042400,-460.0,0.00019406,2]
[375000240,1753497042409,-460.0,0.00019406,2]
[375000242,1753497042419,-463.93543593,0.00019406,2]
[375000244,1753497042428,-477.59828588,0.00019406,2]
[375000246,1753497042437,-460.0,0.00019406,2]
[375000248,1753497042446,-460.0,0.00019406,2]
[375000250,1753497042455,-460.0,0.00019406,2]
[375000252,1753497042464,-466.64707906,0.00019406,2]
[375000254,1753497042474,-151.0,0.00019407,2]
[375000256,1753497042483,-151.0,0.00019407,2]
[375000258,1753497042493,-168.098523,0.00019407,2]
[375000260,1753497042503,-222.287113,0.00019407,2]
[375000262,1753497042513,-222.287113,0.00019407,2]
[375000264,1753497042523,-151.0,0.00019407,2]
[375000266,1753497042532,-155.02784381,0.00019407,2]
[375000268,1753497042542,-500.0,0.00019407,2]
[375000284,1753497042642,-151.0,0.00019407,2]
[375000286,1753497042653,-151.30861229,0.00019407,2]
[375000288,1753497042662,-151.32034587,0.00019407,2]
[375000290,1753497042672,-151.0,0.00019407,2]
[375000292,1753497042681,-159.03261959,0.00019407,2]
[375000294,1753497042691,-153.87964138,0.00019407,2]
[375000296,1753497042701,-152.7984799,0.00019407,2]
[375000298,1753497042710,-190.071,0.00019441,2]
[375000300,1753497042719,-151.0,0.00019452,2]
[375000302,1753497042729,-151.0,0.00019452,2]
[375000304,1753497042738,-151.0,0.00019452,2]
[375000306,1753497042748,-151.0,0.00019452,2]
[375000308,1753497042757,-172.60448,0.00019452,2]
[375000310,1753497042768,-151.0,0.00019452,2]
[375000312,1753497042777,-168.098523,0.00019452,2]
[375000314,1753497042787,-222.287113,0.00019452,2]
[375000316,1753497042796,-222.287113,0.00019452,2]
[375000318,1753497042806,-462.85621092,0.00019452,2]
[375000320,1753497042815,-462.52913636,0.00019452,2]
[375000322,1753497042824,-151.0,0.00019452,2]
[375000324,1753497042835,-151.0,0.00019452,2]
[375000326,1753497042844,-460.0,0.00019452,2]
[375000328,1753497042854,-440.02951507,0.00019452,2]
[375000330,1753497042864,-460.0,0.00019452,2]
[375000332,1753497042874,-460.0,0.00019452,2]
[375000334,1753497042883,-460.0,0.00019452,2]
[375000336,1753497042893,-460.0,0.00019452,2]
[375000338,1753497042903,-204.953089,0.00019452,2]
[375000340,1753497042913,-204.953089,0.00019452,2]
[375000342,1753497042923,-460.0,0.00019452,2]
[375000344,1753497042932,-204.953089,0.00019452,2]
[375000346,1753497042942,-204.953089,0.00019452,2]
[375000348,1753497042951,-204.953089,0.00019452,2]
[375000350,1753497042961,-204.953087,0.00019452,2]
[375000352,1753497042971,-460.0,0.00019452,2]
[375000354,1753497042981,-341.97016843,0.00019452,2]
[375000356,1753497042990,-189.488842,0.00019452,2]
[375000358,1753497043000,-189.488842,0.00019452,2]
[375000360,1753497043010,-189.488842,0.00019452,2]
[375000362,1753497043020,-189.488842,0.00019452,2]
[375000364,1753497043030,-189.488842,0.00019452,2]
[375000366,1753497043039,-189.48884,0.00019452,2]
[375000368,1753497043049,-460.0,0.00019452,2]
[375000370,1753497043059,-460.0,0.00019452,2]
[375000372,1753497043068,-460.0,0.00019452,2]
[375000374,1753497043078,-460.0,0.00019452,2]
[375000376,1753497043087,-460.0,0.00019452,2]
[375000378,1753497043096,-468.2955928,0.00019452,2]
[375000380,1753497043106,-474.36671244,0.00019452,2]
[375000382,1753497043115,-209.165904,0.00019452,2]
[375000384,1753497043125,-460.0,0.00019452,2]
[375000386,1753497043136,-465.9747572,0.00019452,2]
[375000388,1753497043145,-460.0,0.00019452,2]
[375000390,1753497043155,-460.0,0.00019452,2]
[375000392,1753497043164,-460.0,0.00019452,2]
[375000393,1753497043174,-460.0,0.00019452,2]
[375000395,1753497043183,-905.334094,0.00019452,2]
[375000397,1753497043193,-905.334094,0.00019452,2]
[375000399,1753497043202,-905.334094,0.00019452,2]
[375000401,1753497043212,-905.334094,0.00019452,2]
[375000404,1753497043222,-905.334094,0.00019452,2]
[375000405,1753497043231,-905.334098,0.00019452,2]
[375000407,1753497043241,-460.0,0.00019452,2]
[375000409,1753497043250,-460.0,0.00019452,2]
[375000411,1753497043260,-460.0,0.00019452,2]
[375000413,1753497043271,-151.0,0.00019452,2]
[375000415,1753497043280,-151.0,0.00019452,2]
[375000417,1753497043292,-151.0,0.00019452,2]
[375000419,1753497043301,-460.0,0.00019452,2]
[375000421,1753497043311,-460.0,0.00019452,2]
[375000423,1753497043321,-460.0,0.00019452,2]
[375000425,1753497043331,-460.0,0.00019452,2]
[375000427,1753497043340,-572.8,0.00019452,2]
[375000429,1753497043350,-468.18343484,0.00019452,2]
[375000431,1753497043365,-450.8011426,0.00019452,2]
[375000433,1753497043375,-512.69550737,0.00019452,2]
[375000435,1753497043384,-460.0,0.00019452,2]
[375000437,1753497043394,-460.0,0.00019452,2]
[375000439,1753497043406,-460.0,0.00019452,2]
[375000441,1753497043415,-471.51982565,0.00019452,2]
[375000443,1753497043425,-460.0,0.00019452,2]
[375000445,1753497043436,-432.33393069,0.00019452,2]
[375000447,1753497043446,-460.0,0.00019452,2]
[375000449,1753497043455,-565.54,0.00019452,2]
[375000451,1753497043465,-460.0,0.00019452,2]
[375000453,1753497043475,-460.0,0.00019452,2]
[375000455,1753497043484,-460.0,0.00019452,2]
[375000457,1753497043494,-460.0,0.00019452,2]
[375000459,1753497043504,-485.56642169,0.00019452,2]
[375000461,1753497043514,-460.0,0.00019452,2]
[375000463,1753497043524,-173.82862282,0.00019452,2]
[375000465,1753497043534,-386.71195471,0.00019452,2]
[375000467,1753497043544,-460.0,0.00019452,2]
[375000469,1753497043553,-460.0,0.00019452,2]
[375000471,1753497043563,-460.0,0.00019452,2]
[375000473,1753497043572,-460.0,0.00019452,2]
[375000475,1753497043582,-1514.52,0.00019452,2]
[375000477,1753497043592,-460.0,0.00019452,2]
[375000479,1753497043601,-460.0,0.00019452,2]
[375000481,1753497043610,-1225.51,0.00019452,2]
[375000483,1753497043620,-460.0,0.00019452,2]
[375000485,1753497043630,-460.0,0.00019452,2]
[375000487,1753497043639,-465.86225533,0.00019452,2]
[375000489,1753497043649,-460.0,0.00019452,2]
[375000491,1753497043658,-460.0,0.00019452,2]
[375000492,1753497043668,-460.0,0.00019452,2]
[375000494,1753497043678,-460.0,0.00019452,2]
[375000496,1753497043687,-470.92225831,0.00019452,2]
[375000498,1753497043698,-865.75,0.00019452,2]
[375000500,1753497043707,-460.0,0.00019452,2]
[375000502,1753497043717,-937.47,0.00019452,2]
[375000504,1753497043729,-792.65,0.00019452,2]
[375000506,1753497043740,-460.0,0.00019452,2]
[375000508,1753497043749,-213.36276253,0.00019452,2]
[375000510,1753497043758,-460.0,0.00019452,2]
[375000512,1753497043770,-460.0,0.00019452,2]
[375000515,1753497043779,-2403.99,0.00019452,2]
[375000516,1753497043789,-460.0,0.00019452,2]
[375000518,1753497043799,-247.10999687,0.00019452,2]
[375000521,1753497043809,-543.87,0.00019452,2]
[375000522,1753497043819,-460.0,0.00019452,2]
[375000524,1753497043828,-460.0,0.00019452,2]
[375000526,1753497043838,-706.61,0.00019452,2]
[375000528,1753497043847,-460.0,0.00019452,2]
[375000530,1753497043857,-460.0,0.00019452,2]
[375000532,1753497043867,-408.49890202,0.00019452,2]
[375000534,1753497043877,-674.94,0.00019452,2]
[375000537,1753497043887,-697.14,0.00019452,2]
[375000538,1753497043897,-460.0,0.00019452,2]
[375000541,1753497043907,-460.0,0.00019452,2]
[375000543,1753497043917,-460.0,0.00019452,2]
[375000544,1753497043927,-466.47244149,0.00019452,2]
[375000546,1753497043937,-460.0,0.00019452,2]
[375000548,1753497043947,-460.0,0.00019452,2]
[375000550,1753497043956,-460.0,0.00019452,2]
[375000552,1753497043966,-460.0,0.00019452,2]
[375000553,1753497043975,-460.0,0.00019452,2]
[375000554,1753497043985,-460.0,0.00019452,2]
[375000555,1753497043995,-460.0,0.00019452,2]
[375000556,1753497044006,-460.0,0.00019452,2]
[375000557,1753497044015,-460.0,0.00019452,2]
[375000558,1753497044024,-460.0,0.00019452,2]
[375000559,1753497044034,-460.0,0.00019452,2]
[375000560,1753497044043,-548.18,0.00019452,2]
[375000561,1753497044053,-467.48,0.00019452,2]
[375000562,1753497044063,-460.0,0.00019452,2]
[375000563,1753497044073,-500.0,0.00019452,2]
[375000565,1753497044082,-500.0,0.00019473,2]
[375000567,1753497044091,-500.0,0.00019473,2]
[375000569,1753497044100,-500.0,0.00019473,2]
[375000571,1753497044109,-510.5889094,0.00019473,2]
[375000573,1753497044119,-500.0,0.00019473,2]
[375000575,1753497044128,-196.54,0.00019496,2]
[375000577,1753497044138,-530730.82601187,0.000195,2]
[375000579,1753497044147,-151.0,0.000195,2]
[375000581,1753497044156,-151.0,0.000195,2]
[375000583,1753497044165,-151.0,0.000195,2]
[375000585,1753497044174,-151.0,0.000195,2]
[375000587,1753497044184,-151.0,0.000195,2]
[375000589,1753497044193,-168.098523,0.000195,2]
[375000591,1753497044203,-222.287113,0.000195,2]
[375000593,1753497044213,-222.287113,0.000195,2]
[375000595,1753497044222,-151.0,0.000195,2]
[375000597,1753497044232,-455940.10814998,0.000195,4]
[375000600,1753497044241,-151.0,0.000195,2]
[375000602,1753497044251,-151.0,0.00019504,2]
[375000604,1753497044260,-151.0,0.00019504,2]
[375000605,1753497044275,-152.926146,0.00019504,2]
[375000607,1753497044284,-151.0,0.00019504,2]
[375000610,1753497044294,-151.0,0.00019504,2]
[375000612,1753497044304,-151.0,0.00019504,2]
[375000614,1753497044313,-460.0,0.00019504,2]
[375000616,1753497044323,-151.0,0.00019504,2]
[375000617,1753497044332,-168.098523,0.00019504,2]
[375000618,1753497044342,-222.287113,0.00019504,2]
[375000619,1753497044352,-222.287113,0.00019504,2]
[375000620,1753497044364,-771.61677339,0.00019504,2]
[375000621,1753497044374,-189.970402,0.00019505,2]
[375000622,1753497044383,-151.0,0.00019505,2]
[375000623,1753497044393,-227.59418,0.00019505,2]
[375000624,1753497044402,-168.098523,0.00019505,2]
[375000625,1753497044412,-222.287113,0.00019505,2]
[375000626,1753497044421,-222.287113,0.00019505,2]
[375000627,1753497044431,-165.18288,0.00019506,2]
[375000628,1753497044440,-209.915993,0.00019506,2]
[375000629,1753497044450,-151.0,0.00019506,2]
[375000630,1753497044460,-224.01074921,0.00019567,2]
[375000631,1753497044469,-420.0,0.00019639,2]
[375000632,1753497044479,-151.0,0.00019679,2]
[375000633,1753497044488,-476.99282003,0.00019679,2]
[375000634,1753497044498,-151.0,0.0001968,2]
[375000635,1753497044507,-460.0,0.0001968,2]
[375000636,1753497044517,-151.0,0.0001968,2]
[375000637,1753497044526,-151.0,0.0001968,2]
[375000638,1753497044536,-168.098523,0.0001968,2]
[375000640,1753497044545,-168.098523,0.0001968,2]
[375000642,1753497044555,-465.31979679,0.0001968,2]
[375000644,1753497044565,-222.287113,0.0001968,2]
[375000646,1753497044574,-222.287113,0.0001968,2]
[375000648,1753497044584,-222.287113,0.0001968,2]
[375000650,1753497044593,-222.287113,0.0001968,2]
[375000652,1753497044602,-473.19586062,0.0001968,2]
[375000654,1753497044612,-460.0,0.0001968,2]
[375000656,1753497044621,-470.56782926,0.0001968,2]
[375000658,1753497044631,-460.0,0.0001968,2]
[375000660,1753497044640,-472.11583511,0.0001968,2]
[375000662,1753497044650,-460.0,0.0001968,2]
[375000664,1753497044660,-460.0,0.0001968,2]
[375000666,1753497044669,-467.82913148,0.0001968,2]
[375000668,1753497044679,-460.0,0.0001968,2]
[375000670,1753497044689,-460.0,0.0001968,2]
[375000672,1753497044699,-460.0,0.0001968,2]
[375000674,1753497044708,-460.0,0.0001968,2]
[375000676,1753497044717,-460.0,0.0001968,2]
[375000678,1753497044726,-460.0,0.0001968,2]
[375000680,1753497044735,-500.0,0.00019681,2]
[375000682,1753497044745,-174.08381758,0.00019681,2]
[375000684,1753497044754,-151.83254654,0.00019681,2]
[375000686,1753497044764,-168.69971,0.00019726,2]
[375000688,1753497044773,-151.0,0.00019726,2]
[375000690,1753497044783,-168.098523,0.00019726,2]
[375000692,1753497044792,-168.098523,0.00019726,2]
[375000694,1753497044801,-222.287113,0.00019726,2]
[375000696,1753497044810,-222.287113,0.00019726,2]
[375000698,1753497044820,-471.01420666,0.00019726,2]
[375000700,1753497044830,-460.0,0.00019726,2]
[375000702,1753497044840,-460.0,0.00019726,2]
[375000704,1753497044849,-460.0,0.00019726,2]
[375000706,1753497044859,-460.0,0.00019726,2]
[375000708,1753497044869,-460.0,0.00019726,2]
[375000710,1753497044879,-460.0,0.00019726,2]
[375000712,1753497044888,-460.0,0.00019726,2]
[375000714,1753497044898,-460.0,0.00019726,2]
[375000716,1753497044908,-467.65394349,0.00019726,2]
[375000718,1753497044918,-460.0,0.00019726,2]
[375000720,1753497044927,-460.0,0.00019726,2]
[375000722,1753497044936,-460.0,0.00019726,2]
[375000724,1753497044945,-460.0,0.00019726,2]
[375000726,1753497044955,-460.0,0.00019726,2]